[Event "January 9 Early 2024"]
[Site "https://www.chess.com"]
[Date "2024.01.11"]
[Round "3"]
[White "Bjerre, Jonas Buhl"]
[Black "Matinian, Nikita"]
[Result "1-0"]
[Board "188"]
[TimeControl "180+1"]
[WhiteFideId "1444948"]
[BlackFideId "24129100"]
[WhiteElo "2959"]
[BlackElo "2718"]
[WhiteTeam "DEN"]
[BlackTeam "FID"]
[WhiteClock "0:00:28"]
[BlackClock "0:00:02"]

1. e4 {[%clk 0:03:00]}  c5 {[%clk 0:02:52]} 2. Nf3 {[%clk 0:03:00]}  e6 {[%clk 0:02:53]} 3. g3 {[%clk 0:02:57]}  Nc6 {[%clk 0:02:52]} 4. Bg2 {[%clk 0:02:56]}  Nf6 {[%clk 0:02:52]} 5. Nc3 {[%clk 0:02:55]}  d5 {[%clk 0:02:46]} 6. exd5 {[%clk 0:02:55]}  exd5 {[%clk 0:02:47]} 7. d4 {[%clk 0:02:56]}  Bg4 {[%clk 0:02:45]} 8. h3 {[%clk 0:02:51]}  Bxf3 {[%clk 0:02:45]} 9. Qxf3 {[%clk 0:02:49]}  Nxd4 {[%clk 0:02:42]} 10. Qd3 {[%clk 0:02:37]}  Be7 {[%clk 0:02:31]} 11. O-O {[%clk 0:02:18]}  h6 {[%clk 0:02:19]} 12. Be3 {[%clk 0:01:58]}  Qb6 {[%clk 0:01:33]} 13. Nxd5 {[%clk 0:01:48]}  Nxd5 {[%clk 0:01:34]} 14. Bxd5 {[%clk 0:01:48]}  Rd8 {[%clk 0:01:34]} 15. Qc4 {[%clk 0:01:39]}  O-O {[%clk 0:01:31]} 16. Rab1 {[%clk 0:01:20]}  Nxc2 {[%clk 0:01:09]} 17. Bxf7+ {[%clk 0:01:15]}  Rxf7 {[%clk 0:01:09]} 18. Qxc2 {[%clk 0:01:15]}  Qc6 {[%clk 0:01:03]} 19. Rbc1 {[%clk 0:01:08]}  Rd5 {[%clk 0:01:01]} 20. Qe4 {[%clk 0:01:04]}  Bg5 {[%clk 0:00:39]} 21. Bxg5 {[%clk 0:00:56]}  Rxg5 {[%clk 0:00:40]} 22. Qxc6 {[%clk 0:00:55]}  bxc6 {[%clk 0:00:41]} 23. Rc4 {[%clk 0:00:52]}  Rb7 {[%clk 0:00:40]} 24. b3 {[%clk 0:00:51]}  Rb4 {[%clk 0:00:37]} 25. Rfc1 {[%clk 0:00:51]}  Rxc4 {[%clk 0:00:37]} 26. Rxc4 {[%clk 0:00:52]}  Rd5 {[%clk 0:00:34]} 27. Ra4 {[%clk 0:00:52]}  Rd7 {[%clk 0:00:19]} 28. Ra6 {[%clk 0:00:52]}  c4 {[%clk 0:00:19]} 29. bxc4 {[%clk 0:00:52]}  c5 {[%clk 0:00:19]} 30. Ra5 {[%clk 0:00:52]}  Rc7 {[%clk 0:00:18]} 31. Kg2 {[%clk 0:00:51]}  Kf7 {[%clk 0:00:19]} 32. Kf3 {[%clk 0:00:51]}  Ke6 {[%clk 0:00:20]} 33. Ke4 {[%clk 0:00:52]}  Kd6 {[%clk 0:00:20]} 34. Ra6+ {[%clk 0:00:52]}  Kd7 {[%clk 0:00:17]} 35. Kd5 {[%clk 0:00:50]}  Ke7 {[%clk 0:00:10]} 36. f4 {[%clk 0:00:50]}  g5 {[%clk 0:00:07]} 37. fxg5 {[%clk 0:00:48]}  hxg5 {[%clk 0:00:08]} 38. Rg6 {[%clk 0:00:47]}  Rd7+ {[%clk 0:00:06]} 39. Kxc5 {[%clk 0:00:47]}  Rd2 {[%clk 0:00:06]} 40. Rxg5 {[%clk 0:00:32]}  Rxa2 {[%clk 0:00:06]} 41. Kb4 {[%clk 0:00:32]}  Kf6 {[%clk 0:00:04]} 42. Ra5 {[%clk 0:00:32]}  Rb2+ {[%clk 0:00:01]} 43. Kc5 {[%clk 0:00:31]}  Rb7 {[%clk 0:00:02]} 44. Kc6 {[%clk 0:00:30]}  Rh7 {[%clk 0:00:01]} 45. h4 {[%clk 0:00:30]}  Rg7 {[%clk 0:00:02]} 46. c5 {[%clk 0:00:28]} 1-0

[Event "January 9 Early 2024"]
[Site "https://www.chess.com"]
[Date "2024.01.11"]
[Round "3"]
[White "Leiva, Gianmarco"]
[Black "Dinu, Dumitru-Daniel"]
[Result "0-1"]
[Board "189"]
[TimeControl "180+1"]
[WhiteFideId "3804399"]
[BlackFideId "1208403"]
[WhiteElo "2686"]
[BlackElo "2508"]
[WhiteTeam "PER"]
[BlackTeam "ROU"]
[WhiteClock "0:00:03"]
[BlackClock "0:00:09"]

1. d4 {[%clk 0:03:00]}  Nf6 {[%clk 0:02:57]} 2. Nf3 {[%clk 0:03:00]}  d5 {[%clk 0:02:57]} 3. Bf4 {[%clk 0:03:00]}  c5 {[%clk 0:02:55]} 4. e3 {[%clk 0:03:00]}  Nc6 {[%clk 0:02:52]} 5. Nbd2 {[%clk 0:03:00]}  e6 {[%clk 0:02:46]} 6. c3 {[%clk 0:02:58]}  cxd4 {[%clk 0:02:47]} 7. exd4 {[%clk 0:02:57]}  Nh5 {[%clk 0:02:46]} 8. Bg5 {[%clk 0:02:58]}  f6 {[%clk 0:02:45]} 9. Bh4 {[%clk 0:02:51]}  Bd6 {[%clk 0:02:40]} 10. Bb5 {[%clk 0:02:42]}  O-O {[%clk 0:02:25]} 11. Bg3 {[%clk 0:02:33]}  Nf4 {[%clk 0:02:18]} 12. O-O {[%clk 0:02:31]}  Qb6 {[%clk 0:02:08]} 13. a4 {[%clk 0:02:30]}  a6 {[%clk 0:02:01]} 14. Bxc6 {[%clk 0:02:30]}  bxc6 {[%clk 0:01:49]} 15. Qb3 {[%clk 0:02:27]}  Qxb3 {[%clk 0:01:35]} 16. Nxb3 {[%clk 0:02:27]}  Ne2+ {[%clk 0:01:19]} 17. Kh1 {[%clk 0:02:27]}  Nxg3+ {[%clk 0:01:19]} 18. hxg3 {[%clk 0:02:27]}  Rb8 {[%clk 0:01:20]} 19. Nfd2 {[%clk 0:02:27]}  e5 {[%clk 0:01:15]} 20. f4 {[%clk 0:02:25]}  e4 {[%clk 0:01:04]} 21. Rfe1 {[%clk 0:02:25]}  g5 {[%clk 0:01:00]} 22. fxg5 {[%clk 0:02:15]}  Bxg3 {[%clk 0:00:49]} 23. Rf1 {[%clk 0:00:58]}  e3 {[%clk 0:00:40]} 24. Rf3 {[%clk 0:00:58]}  exd2 {[%clk 0:00:38]} 25. Nxd2 {[%clk 0:00:56]}  Bh4 {[%clk 0:00:31]} 26. b4 {[%clk 0:00:54]}  Bxg5 {[%clk 0:00:26]} 27. Nb3 {[%clk 0:00:54]}  Bg4 {[%clk 0:00:22]} 28. Rg3 {[%clk 0:00:46]}  h5 {[%clk 0:00:22]} 29. Nc5 {[%clk 0:00:47]}  Rbe8 {[%clk 0:00:20]} 30. Nxa6 {[%clk 0:00:45]}  Re2 {[%clk 0:00:18]} 31. Nc7 {[%clk 0:00:34]}  Bf4 {[%clk 0:00:17]} 32. Rxg4+ {[%clk 0:00:01]}  hxg4 {[%clk 0:00:17]} 33. Na6 {[%clk 0:00:01]}  Rfe8 {[%clk 0:00:16]} 34. g3 {[%clk 0:00:01]}  Bxg3 {[%clk 0:00:16]} 35. Nc5 {[%clk 0:00:01]}  Rh2+ {[%clk 0:00:15]} 36. Kg1 {[%clk 0:00:01]}  Ree2 {[%clk 0:00:16]} 37. a5 {[%clk 0:00:02]}  Reg2+ {[%clk 0:00:14]} 38. Kf1 {[%clk 0:00:02]}  Ra2 {[%clk 0:00:10]} 39. Kg1 {[%clk 0:00:03]}  Rxa1# {[%clk 0:00:09]} 0-1

[Event "January 9 Early 2024"]
[Site "https://www.chess.com"]
[Date "2024.01.11"]
[Round "3"]
[White "Kovalev, Vladislav"]
[Black "Baziuk, Vladyslav"]
[Result "1/2-1/2"]
[Board "191"]
[TimeControl "180+1"]
[WhiteFideId "13504398"]
[BlackFideId "34107940"]
[WhiteElo "2909"]
[BlackElo "2710"]
[WhiteTeam "FID"]
[BlackTeam "UKR"]
[WhiteClock "0:00:04"]
[BlackClock "0:00:07"]

1. e4 {[%clk 0:02:58]}  c6 {[%clk 0:03:00]} 2. Nf3 {[%clk 0:02:57]}  d5 {[%clk 0:03:00]} 3. d3 {[%clk 0:02:58]}  Qc7 {[%clk 0:02:58]} 4. Nc3 {[%clk 0:02:56]}  e6 {[%clk 0:02:22]} 5. g3 {[%clk 0:02:42]}  Nf6 {[%clk 0:02:22]} 6. Bg2 {[%clk 0:02:42]}  Nbd7 {[%clk 0:02:18]} 7. O-O {[%clk 0:02:42]}  Bd6 {[%clk 0:02:10]} 8. Qe2 {[%clk 0:02:40]}  O-O {[%clk 0:02:08]} 9. Re1 {[%clk 0:02:39]}  e5 {[%clk 0:02:05]} 10. exd5 {[%clk 0:02:33]}  Nxd5 {[%clk 0:01:58]} 11. Ng5 {[%clk 0:02:18]}  h6 {[%clk 0:01:47]} 12. Nge4 {[%clk 0:02:09]}  Nxc3 {[%clk 0:01:35]} 13. bxc3 {[%clk 0:02:10]}  Be7 {[%clk 0:01:35]} 14. Rb1 {[%clk 0:02:01]}  Re8 {[%clk 0:01:32]} 15. c4 {[%clk 0:02:00]}  Nc5 {[%clk 0:01:17]} 16. Nxc5 {[%clk 0:01:48]}  Bxc5 {[%clk 0:01:16]} 17. Bb2 {[%clk 0:01:49]}  f6 {[%clk 0:01:12]} 18. d4 {[%clk 0:01:44]}  Bb4 {[%clk 0:01:06]} 19. Red1 {[%clk 0:01:29]}  Bf5 {[%clk 0:00:45]} 20. dxe5 {[%clk 0:01:20]}  fxe5 {[%clk 0:00:42]} 21. c5 {[%clk 0:01:20]}  Qa5 {[%clk 0:00:26]} 22. Be4 {[%clk 0:00:23]}  Bxe4 {[%clk 0:00:20]} 23. Qxe4 {[%clk 0:00:24]}  Qxc5 {[%clk 0:00:20]} 24. Rd7 {[%clk 0:00:22]}  Rf8 {[%clk 0:00:17]} 25. Bxe5 {[%clk 0:00:12]}  Qxf2+ {[%clk 0:00:17]} 26. Kh1 {[%clk 0:00:13]}  Rf7 {[%clk 0:00:07]} 27. Rxf7 {[%clk 0:00:12]}  Qxf7 {[%clk 0:00:08]} 28. Qxb4 {[%clk 0:00:08]}  Qd5+ {[%clk 0:00:07]} 29. Kg1 {[%clk 0:00:08]}  Qxe5 {[%clk 0:00:08]} 30. Qc4+ {[%clk 0:00:05]}  Qd5 {[%clk 0:00:07]} 31. Qxd5+ {[%clk 0:00:05]}  cxd5 {[%clk 0:00:08]} 32. Rxb7 {[%clk 0:00:06]}  Rc8 {[%clk 0:00:08]} 33. Rxa7 {[%clk 0:00:03]}  Rxc2 {[%clk 0:00:08]} 34. a4 {[%clk 0:00:03]}  d4 {[%clk 0:00:08]} 35. a5 {[%clk 0:00:04]}  Ra2 {[%clk 0:00:08]} 36. a6 {[%clk 0:00:04]}  Kh7 {[%clk 0:00:08]} 37. Rd7 {[%clk 0:00:03]}  Rxa6 {[%clk 0:00:08]} 38. Rxd4 {[%clk 0:00:04]}  Rf6 {[%clk 0:00:07]} 1/2-1/2

[Event "January 9 Early 2024"]
[Site "https://www.chess.com"]
[Date "2024.01.11"]
[Round "3"]
[White "Quirke, Jeffrey"]
[Black "Kolmagorov, Alexey"]
[Result "0-1"]
[Board "192"]
[TimeControl "180+1"]
[WhiteFideId "2013029"]
[BlackFideId "34129402"]
[WhiteElo "2101"]
[BlackElo "2370"]
[WhiteTeam "USA"]
[BlackTeam "RUS"]
[WhiteClock "0:00:03"]
[BlackClock "0:00:21"]

1. e4 {[%clk 0:02:55]}  c5 {[%clk 0:03:00]} 2. c3 {[%clk 0:02:54]}  Nf6 {[%clk 0:02:59]} 3. e5 {[%clk 0:02:55]}  Nd5 {[%clk 0:02:59]} 4. Nf3 {[%clk 0:02:55]}  Nc6 {[%clk 0:02:59]} 5. Bc4 {[%clk 0:02:54]}  Nb6 {[%clk 0:02:59]} 6. Bb3 {[%clk 0:02:55]}  g6 {[%clk 0:02:56]} 7. O-O {[%clk 0:02:54]}  Bg7 {[%clk 0:02:57]} 8. Re1 {[%clk 0:02:54]}  O-O {[%clk 0:02:56]} 9. d4 {[%clk 0:02:49]}  cxd4 {[%clk 0:02:57]} 10. cxd4 {[%clk 0:02:49]}  d6 {[%clk 0:02:58]} 11. Bf4 {[%clk 0:02:27]}  dxe5 {[%clk 0:02:50]} 12. Nxe5 {[%clk 0:02:26]}  Nxd4 {[%clk 0:02:44]} 13. Nxf7 {[%clk 0:01:57]}  Rxf7 {[%clk 0:02:39]} 14. Bxf7+ {[%clk 0:01:57]}  Kxf7 {[%clk 0:02:39]} 15. Nc3 {[%clk 0:01:54]}  Bf5 {[%clk 0:02:23]} 16. Be5 {[%clk 0:01:46]}  Qd7 {[%clk 0:02:16]} 17. Bxg7 {[%clk 0:01:46]}  Kxg7 {[%clk 0:02:17]} 18. Rc1 {[%clk 0:01:34]}  Rd8 {[%clk 0:02:14]} 19. Ne4 {[%clk 0:01:32]}  Bxe4 {[%clk 0:01:55]} 20. Rxe4 {[%clk 0:01:31]}  Nf5 {[%clk 0:01:51]} 21. Qf3 {[%clk 0:01:18]}  Qd2 {[%clk 0:01:49]} 22. Rce1 {[%clk 0:01:17]}  Rd7 {[%clk 0:01:46]} 23. g4 {[%clk 0:01:08]}  Qg5 {[%clk 0:01:41]} 24. Qg2 {[%clk 0:00:59]}  Nh4 {[%clk 0:01:37]} 25. Qg3 {[%clk 0:00:56]}  Nc8 {[%clk 0:01:04]} 26. f4 {[%clk 0:00:55]}  Qc5+ {[%clk 0:01:05]} 27. Kh1 {[%clk 0:00:54]}  g5 {[%clk 0:00:57]} 28. fxg5 {[%clk 0:00:46]}  Ng6 {[%clk 0:00:56]} 29. h4 {[%clk 0:00:38]}  Nd6 {[%clk 0:00:55]} 30. R4e2 {[%clk 0:00:27]}  Rc7 {[%clk 0:00:48]} 31. h5 {[%clk 0:00:27]}  Qd5+ {[%clk 0:00:43]} 32. Kh2 {[%clk 0:00:26]}  Nf8 {[%clk 0:00:40]} 33. Rxe7+ {[%clk 0:00:25]}  Rxe7 {[%clk 0:00:40]} 34. Rxe7+ {[%clk 0:00:26]}  Kg8 {[%clk 0:00:40]} 35. Qb3 {[%clk 0:00:23]}  Nc4 {[%clk 0:00:30]} 36. Qxb7 {[%clk 0:00:16]}  Qd2+ {[%clk 0:00:22]} 37. Qg2 {[%clk 0:00:12]}  Qd6+ {[%clk 0:00:22]} 38. Kh3 {[%clk 0:00:08]}  Qxe7 {[%clk 0:00:22]} 39. Qd5+ {[%clk 0:00:06]}  Qe6 {[%clk 0:00:21]} 40. Qd4 {[%clk 0:00:04]}  Qe3+ {[%clk 0:00:21]} 41. Qxe3 {[%clk 0:00:04]}  Nxe3 {[%clk 0:00:22]} 42. Kg3 {[%clk 0:00:04]}  Ne6 {[%clk 0:00:20]} 43. Kf3 {[%clk 0:00:04]}  Nc4 {[%clk 0:00:21]} 44. g6 {[%clk 0:00:03]}  hxg6 {[%clk 0:00:21]} 0-1

[Event "January 9 Early 2024"]
[Site "https://www.chess.com"]
[Date "2024.01.11"]
[Round "3"]
[White "Arabidze, Meri"]
[Black "Hoffmann, Asa"]
[Result "0-1"]
[Board "193"]
[TimeControl "180+1"]
[WhiteFideId "13604040"]
[BlackFideId "2001470"]
[WhiteElo "2710"]
[BlackElo "2383"]
[WhiteTeam "GEO"]
[BlackTeam "USA"]
[WhiteClock "0:00:02"]
[BlackClock "0:00:33"]

1. Nf3 {[%clk 0:03:00]}  Nf6 {[%clk 0:02:54]} 2. c4 {[%clk 0:03:00]}  d6 {[%clk 0:02:53]} 3. d4 {[%clk 0:02:59]}  Bf5 {[%clk 0:02:50]} 4. g3 {[%clk 0:02:57]}  h6 {[%clk 0:02:50]} 5. Bg2 {[%clk 0:02:58]}  c6 {[%clk 0:02:50]} 6. O-O {[%clk 0:02:57]}  Nbd7 {[%clk 0:02:50]} 7. Re1 {[%clk 0:02:51]}  e5 {[%clk 0:02:49]} 8. e4 {[%clk 0:02:30]}  Bxe4 {[%clk 0:02:43]} 9. Nxe5 {[%clk 0:02:05]}  dxe5 {[%clk 0:02:39]} 10. Bxe4 {[%clk 0:02:04]}  Be7 {[%clk 0:02:16]} 11. Bf5 {[%clk 0:01:40]}  exd4 {[%clk 0:02:08]} 12. Qxd4 {[%clk 0:01:37]}  O-O {[%clk 0:02:07]} 13. Nc3 {[%clk 0:01:36]}  Re8 {[%clk 0:01:54]} 14. Bf4 {[%clk 0:01:26]}  Nc5 {[%clk 0:01:48]} 15. Rad1 {[%clk 0:01:10]}  Qxd4 {[%clk 0:01:44]} 16. Rxd4 {[%clk 0:01:11]}  Bf8 {[%clk 0:01:43]} 17. Rdd1 {[%clk 0:01:00]}  Rad8 {[%clk 0:01:37]} 18. Be3 {[%clk 0:00:43]}  b6 {[%clk 0:01:32]} 19. b4 {[%clk 0:00:36]}  Ne6 {[%clk 0:01:32]} 20. a3 {[%clk 0:00:36]}  Rxd1 {[%clk 0:01:11]} 21. Rxd1 {[%clk 0:00:35]}  Rd8 {[%clk 0:01:11]} 22. Rxd8 {[%clk 0:00:32]}  Nxd8 {[%clk 0:01:10]} 23. Kg2 {[%clk 0:00:26]}  Bd6 {[%clk 0:01:08]} 24. h4 {[%clk 0:00:24]}  Kf8 {[%clk 0:01:07]} 25. g4 {[%clk 0:00:20]}  Ke7 {[%clk 0:01:05]} 26. f3 {[%clk 0:00:19]}  Ne6 {[%clk 0:01:02]} 27. Ne2 {[%clk 0:00:16]}  c5 {[%clk 0:01:00]} 28. b5 {[%clk 0:00:16]}  Be5 {[%clk 0:00:58]} 29. Bxe6 {[%clk 0:00:06]}  Kxe6 {[%clk 0:00:55]} 30. a4 {[%clk 0:00:06]}  Ne8 {[%clk 0:00:52]} 31. g5 {[%clk 0:00:06]}  hxg5 {[%clk 0:00:51]} 32. hxg5 {[%clk 0:00:07]}  Nd6 {[%clk 0:00:51]} 33. f4 {[%clk 0:00:06]}  Bb2 {[%clk 0:00:50]} 34. Kf3 {[%clk 0:00:04]}  Nxc4 {[%clk 0:00:50]} 35. Bf2 {[%clk 0:00:03]}  g6 {[%clk 0:00:45]} 36. Ng3 {[%clk 0:00:03]}  Nd6 {[%clk 0:00:44]} 37. Kg4 {[%clk 0:00:03]}  Kd5 {[%clk 0:00:44]} 38. f5 {[%clk 0:00:03]}  c4 {[%clk 0:00:43]} 39. fxg6 {[%clk 0:00:03]}  fxg6 {[%clk 0:00:43]} 40. Ne2 {[%clk 0:00:04]}  Be5 {[%clk 0:00:39]} 41. Be3 {[%clk 0:00:02]}  Ke4 {[%clk 0:00:37]} 42. Bf4 {[%clk 0:00:01]}  Nf5 {[%clk 0:00:34]} 43. Bxe5 {[%clk 0:00:01]}  Kxe5 {[%clk 0:00:34]} 44. Nf4 {[%clk 0:00:02]}  Ne7 {[%clk 0:00:33]} 45. Kf3 {[%clk 0:00:01]}  Kd4 {[%clk 0:00:33]} 46. Kg4 {[%clk 0:00:01]}  c3 {[%clk 0:00:33]} 47. Ne6+ {[%clk 0:00:01]}  Kd3 {[%clk 0:00:33]} 48. Nf4+ {[%clk 0:00:01]}  Kd2 {[%clk 0:00:33]} 49. Kf3 {[%clk 0:00:02]}  c2 {[%clk 0:00:33]} 0-1

[Event "January 9 Early 2024"]
[Site "https://www.chess.com"]
[Date "2024.01.11"]
[Round "3"]
[White "Baruch, Liam"]
[Black "Garbarino, Rodolfo"]
[Result "0-1"]
[Board "194"]
[TimeControl "180+1"]
[WhiteFideId "14322064"]
[BlackFideId "100412"]
[WhiteElo "2095"]
[BlackElo "2368"]
[WhiteTeam "RSA"]
[BlackTeam "ARG"]
[WhiteClock "0:00:32"]
[BlackClock "0:00:17"]

1. e4 {[%clk 0:03:00]}  e5 {[%clk 0:02:59]} 2. Nf3 {[%clk 0:03:01]}  Nc6 {[%clk 0:03:00]} 3. d4 {[%clk 0:03:01]}  exd4 {[%clk 0:02:59]} 4. Nxd4 {[%clk 0:03:01]}  Qf6 {[%clk 0:02:59]} 5. Be3 {[%clk 0:02:59]}  Bc5 {[%clk 0:02:58]} 6. c3 {[%clk 0:02:59]}  Nge7 {[%clk 0:02:58]} 7. Be2 {[%clk 0:02:59]}  O-O {[%clk 0:02:55]} 8. O-O {[%clk 0:02:59]}  d5 {[%clk 0:02:55]} 9. Nxc6 {[%clk 0:02:53]}  Qxc6 {[%clk 0:02:53]} 10. Bxc5 {[%clk 0:02:54]}  Qxc5 {[%clk 0:02:54]} 11. Nd2 {[%clk 0:02:54]}  Be6 {[%clk 0:02:50]} 12. Qc2 {[%clk 0:02:52]}  Rad8 {[%clk 0:02:48]} 13. Nb3 {[%clk 0:02:49]}  Qb6 {[%clk 0:02:44]} 14. Bf3 {[%clk 0:02:46]}  c5 {[%clk 0:02:31]} 15. Rfe1 {[%clk 0:02:34]}  Ng6 {[%clk 0:02:22]} 16. Rad1 {[%clk 0:02:31]}  Ne5 {[%clk 0:02:12]} 17. Nd2 {[%clk 0:02:29]}  d4 {[%clk 0:02:08]} 18. c4 {[%clk 0:02:16]}  Qa6 {[%clk 0:01:50]} 19. b3 {[%clk 0:02:13]}  Qa5 {[%clk 0:01:49]} 20. Nf1 {[%clk 0:02:03]}  Qc7 {[%clk 0:01:20]} 21. Ng3 {[%clk 0:01:59]}  g6 {[%clk 0:01:13]} 22. Be2 {[%clk 0:01:57]}  a6 {[%clk 0:01:13]} 23. Bd3 {[%clk 0:01:56]}  Nc6 {[%clk 0:01:11]} 24. h4 {[%clk 0:01:44]}  h5 {[%clk 0:01:06]} 25. Qd2 {[%clk 0:01:32]}  Ne5 {[%clk 0:01:02]} 26. Qg5 {[%clk 0:01:24]}  f6 {[%clk 0:01:00]} 27. Qd2 {[%clk 0:01:20]}  Ng4 {[%clk 0:00:56]} 28. Be2 {[%clk 0:01:13]}  Kg7 {[%clk 0:00:47]} 29. Bxg4 {[%clk 0:01:11]}  Bxg4 {[%clk 0:00:46]} 30. Ne2 {[%clk 0:01:09]}  Rfe8 {[%clk 0:00:45]} 31. f3 {[%clk 0:01:08]}  Bc8 {[%clk 0:00:44]} 32. Nf4 {[%clk 0:01:08]}  b5 {[%clk 0:00:42]} 33. Nd5 {[%clk 0:01:06]}  Qg3 {[%clk 0:00:42]} 34. Qf2 {[%clk 0:01:06]}  Qxf2+ {[%clk 0:00:41]} 35. Kxf2 {[%clk 0:01:07]}  Bb7 {[%clk 0:00:39]} 36. Re2 {[%clk 0:01:00]}  f5 {[%clk 0:00:35]} 37. Rd3 {[%clk 0:00:51]}  fxe4 {[%clk 0:00:31]} 38. fxe4 {[%clk 0:00:52]}  Bxd5 {[%clk 0:00:29]} 39. cxd5 {[%clk 0:00:51]}  Re5 {[%clk 0:00:28]} 40. Rf3 {[%clk 0:00:47]}  Rf8 {[%clk 0:00:26]} 41. Kg3 {[%clk 0:00:44]}  Rfe8 {[%clk 0:00:24]} 42. Rf4 {[%clk 0:00:43]}  Rxd5 {[%clk 0:00:22]} 43. exd5 {[%clk 0:00:42]}  Rxe2 {[%clk 0:00:21]} 44. d6 {[%clk 0:00:31]}  Re6 {[%clk 0:00:20]} 45. d7 {[%clk 0:00:31]}  Rd6 {[%clk 0:00:20]} 46. Rf1 {[%clk 0:00:31]}  Rxd7 {[%clk 0:00:20]} 47. Rc1 {[%clk 0:00:32]}  d3 {[%clk 0:00:19]} 48. Rd1 {[%clk 0:00:32]}  c4 {[%clk 0:00:18]} 49. Kf3 {[%clk 0:00:32]}  c3 {[%clk 0:00:18]} 50. Ke3 {[%clk 0:00:32]}  d2 {[%clk 0:00:17]} 0-1

[Event "January 9 Early 2024"]
[Site "https://www.chess.com"]
[Date "2024.01.11"]
[Round "3"]
[White "Khismatullin, Denis"]
[Black "Syaputra, Arifa Rizki"]
[Result "1-0"]
[Board "198"]
[TimeControl "180+1"]
[WhiteFideId "4142578"]
[BlackFideId "7105100"]
[WhiteElo "2963"]
[BlackElo "2723"]
[WhiteTeam "RUS"]
[BlackTeam "INA"]
[WhiteClock "0:00:18"]
[BlackClock "0:00:03"]

1. c4 {[%clk 0:03:00]}  c5 {[%clk 0:02:56]} 2. g3 {[%clk 0:03:00]}  g6 {[%clk 0:02:55]} 3. Bg2 {[%clk 0:03:00]}  Bg7 {[%clk 0:02:56]} 4. Nc3 {[%clk 0:03:00]}  Nf6 {[%clk 0:02:55]} 5. e3 {[%clk 0:02:59]}  Nc6 {[%clk 0:02:54]} 6. Nge2 {[%clk 0:02:59]}  O-O {[%clk 0:02:54]} 7. d4 {[%clk 0:02:57]}  d6 {[%clk 0:02:54]} 8. O-O {[%clk 0:02:55]}  Bg4 {[%clk 0:02:45]} 9. h3 {[%clk 0:02:53]}  Bxe2 {[%clk 0:02:43]} 10. Nxe2 {[%clk 0:02:53]}  Qc7 {[%clk 0:02:34]} 11. b3 {[%clk 0:02:51]}  Rfd8 {[%clk 0:02:25]} 12. Bb2 {[%clk 0:02:31]}  d5 {[%clk 0:02:15]} 13. cxd5 {[%clk 0:02:29]}  Nxd5 {[%clk 0:02:14]} 14. Rc1 {[%clk 0:02:26]}  cxd4 {[%clk 0:02:12]} 15. Nxd4 {[%clk 0:02:25]}  Qb6 {[%clk 0:02:11]} 16. Nxc6 {[%clk 0:02:17]}  bxc6 {[%clk 0:02:06]} 17. Qe2 {[%clk 0:02:07]}  Bxb2 {[%clk 0:01:54]} 18. Qxb2 {[%clk 0:02:08]}  Rac8 {[%clk 0:01:38]} 19. Rc4 {[%clk 0:02:06]}  Rd6 {[%clk 0:01:30]} 20. Rfc1 {[%clk 0:02:00]}  Rcd8 {[%clk 0:01:30]} 21. Qe5 {[%clk 0:01:47]}  f6 {[%clk 0:01:25]} 22. Qe4 {[%clk 0:01:40]}  e5 {[%clk 0:01:08]} 23. Kh2 {[%clk 0:01:37]}  Ne7 {[%clk 0:01:03]} 24. R4c2 {[%clk 0:01:24]}  Kg7 {[%clk 0:00:59]} 25. Qc4 {[%clk 0:01:20]}  R8d7 {[%clk 0:00:36]} 26. b4 {[%clk 0:01:18]}  a5 {[%clk 0:00:32]} 27. Rb1 {[%clk 0:01:09]}  axb4 {[%clk 0:00:28]} 28. Rxb4 {[%clk 0:01:08]}  Qa5 {[%clk 0:00:28]} 29. Rb8 {[%clk 0:01:00]}  Rd2 {[%clk 0:00:27]} 30. Rxd2 {[%clk 0:00:54]}  Qxd2 {[%clk 0:00:26]} 31. Qe6 {[%clk 0:00:48]}  Qd6 {[%clk 0:00:13]} 32. Qb3 {[%clk 0:00:48]}  f5 {[%clk 0:00:11]} 33. a4 {[%clk 0:00:46]}  f4 {[%clk 0:00:11]} 34. exf4 {[%clk 0:00:39]}  exf4 {[%clk 0:00:11]} 35. Qc3+ {[%clk 0:00:38]}  Kh6 {[%clk 0:00:11]} 36. Rb4 {[%clk 0:00:34]}  fxg3+ {[%clk 0:00:09]} 37. fxg3 {[%clk 0:00:34]}  Nf5 {[%clk 0:00:09]} 38. Rg4 {[%clk 0:00:33]}  Qd2 {[%clk 0:00:08]} 39. Qf6 {[%clk 0:00:22]}  Re7 {[%clk 0:00:03]} 40. Rh4+ {[%clk 0:00:18]}  Nxh4 {[%clk 0:00:03]} 41. Qxh4+ {[%clk 0:00:18]} 1-0

[Event "January 9 Early 2024"]
[Site "https://www.chess.com"]
[Date "2024.01.11"]
[Round "3"]
[White "Cieslak, Patryk"]
[Black "Ladan, Nicholas"]
[Result "1-0"]
[Board "199"]
[TimeControl "180+1"]
[WhiteFideId "21078882"]
[BlackFideId "30918855"]
[WhiteElo "2685"]
[BlackElo "2481"]
[WhiteTeam "POL"]
[BlackTeam "USA"]
[WhiteClock "0:00:25"]
[BlackClock "0:00:02"]

1. Nf3 {[%clk 0:03:00]}  Nf6 {[%clk 0:02:58]} 2. d4 {[%clk 0:03:01]}  e6 {[%clk 0:02:55]} 3. Bg5 {[%clk 0:03:01]}  h6 {[%clk 0:02:51]} 4. Bh4 {[%clk 0:03:00]}  g5 {[%clk 0:02:51]} 5. Bg3 {[%clk 0:02:59]}  Ne4 {[%clk 0:02:51]} 6. Nbd2 {[%clk 0:02:59]}  Nxg3 {[%clk 0:02:46]} 7. hxg3 {[%clk 0:03:00]}  Bg7 {[%clk 0:02:46]} 8. e3 {[%clk 0:02:59]}  d6 {[%clk 0:02:43]} 9. Bd3 {[%clk 0:02:54]}  Nd7 {[%clk 0:02:41]} 10. c3 {[%clk 0:02:54]}  b6 {[%clk 0:02:24]} 11. Be4 {[%clk 0:02:53]}  d5 {[%clk 0:02:19]} 12. Bd3 {[%clk 0:02:53]}  Bb7 {[%clk 0:02:18]} 13. Qc2 {[%clk 0:02:53]}  c5 {[%clk 0:02:16]} 14. O-O-O {[%clk 0:02:45]}  Qc7 {[%clk 0:02:16]} 15. Kb1 {[%clk 0:02:44]}  O-O-O {[%clk 0:02:15]} 16. Qa4 {[%clk 0:02:42]}  Kb8 {[%clk 0:02:14]} 17. Bb5 {[%clk 0:02:41]}  f5 {[%clk 0:02:00]} 18. Rc1 {[%clk 0:02:37]}  Qc8 {[%clk 0:01:47]} 19. Ka1 {[%clk 0:02:13]}  a6 {[%clk 0:01:46]} 20. Be2 {[%clk 0:02:09]}  b5 {[%clk 0:01:45]} 21. Qc2 {[%clk 0:02:03]}  Qc7 {[%clk 0:01:40]} 22. Nb3 {[%clk 0:01:59]}  Qd6 {[%clk 0:01:37]} 23. dxc5 {[%clk 0:01:54]}  Nxc5 {[%clk 0:01:37]} 24. Nxc5 {[%clk 0:01:55]}  Qxc5 {[%clk 0:01:37]} 25. Nd4 {[%clk 0:01:56]}  Qb6 {[%clk 0:01:30]} 26. g4 {[%clk 0:01:56]}  f4 {[%clk 0:01:06]} 27. Qg6 {[%clk 0:01:54]}  Bxd4 {[%clk 0:00:55]} 28. exd4 {[%clk 0:01:47]}  Ka7 {[%clk 0:00:53]} 29. Rxh6 {[%clk 0:01:33]}  Rdg8 {[%clk 0:00:44]} 30. Qh5 {[%clk 0:01:33]}  Rxh6 {[%clk 0:00:43]} 31. Qxh6 {[%clk 0:01:33]}  e5 {[%clk 0:00:43]} 32. Qxb6+ {[%clk 0:01:03]}  Kxb6 {[%clk 0:00:44]} 33. dxe5 {[%clk 0:01:04]}  Re8 {[%clk 0:00:44]} 34. Bf3 {[%clk 0:01:04]}  Rxe5 {[%clk 0:00:44]} 35. Kb1 {[%clk 0:01:03]}  Kc5 {[%clk 0:00:30]} 36. Rd1 {[%clk 0:00:59]}  Bc8 {[%clk 0:00:27]} 37. Kc2 {[%clk 0:00:59]}  Be6 {[%clk 0:00:26]} 38. b4+ {[%clk 0:00:56]}  Kd6 {[%clk 0:00:25]} 39. Kd3 {[%clk 0:00:57]}  Bf7 {[%clk 0:00:19]} 40. Rh1 {[%clk 0:00:55]}  Bg6+ {[%clk 0:00:17]} 41. Kd4 {[%clk 0:00:38]}  Re6 {[%clk 0:00:05]} 42. Rh6 {[%clk 0:00:31]}  Rf6 {[%clk 0:00:03]} 43. Bxd5 {[%clk 0:00:29]}  Ke7 {[%clk 0:00:02]} 44. Kc5 {[%clk 0:00:25]} 1-0